fUSD/lending_fUSD_20241107
["ID","MTS","AMOUNT","RATE_DAILY","PERIOD"]
[341589843,1731011474217,-846.9,0.00028261,2]
[341589844,1731011474227,-500.0,0.00028261,2]
[341589845,1731011474236,-248.368801,0.00028261,7]
[341589846,1731011474246,-248.368801,0.00028261,7]
[341589847,1731011474256,-500.0,0.00028261,2]
[341589848,1731011474266,-904.79,0.00028261,2]
[341589849,1731011474278,-572.85,0.00028261,2]
[341589850,1731011474287,-500.0,0.00028261,2]
[341589851,1731011474297,-500.0,0.00028261,2]
[341589852,1731011474307,-2160.92,0.00028261,2]
[341589853,1731011474317,-543.592031,0.00028261,7]
[341589854,1731011474327,-151.0,0.00028261,7]
[341589855,1731011474337,-543.592031,0.00028261,7]
[341589856,1731011474348,-1767.52,0.00028261,2]
[341589857,1731011474358,-500.0,0.00028261,2]
[341589858,1731011474367,-1023.78,0.00028261,2]
[341589859,1731011474378,-829.37,0.00028261,2]
[341589860,1731011474389,-500.0,0.00028261,2]
[341589861,1731011474406,-151.0,0.00028261,7]
[341589862,1731011474415,-500.0,0.00028261,2]
[341589863,1731011474426,-500.0,0.00028261,2]
[341589864,1731011474435,-500.0,0.00028261,2]
[341589865,1731011474445,-533.07,0.00028261,2]
[341589866,1731011474454,-290.794095,0.00028261,7]
[341589867,1731011474464,-500.0,0.00028261,2]
[341589868,1731011474474,-290.794095,0.00028261,7]
[341589869,1731011474483,-500.0,0.00028261,2]
[341589870,1731011474493,-500.0,0.00028261,2]
[341589871,1731011474502,-500.0,0.00028261,2]
[341589872,1731011474512,-500.0,0.00028261,2]
[341589873,1731011474521,-974.74,0.00028261,2]
[341589874,1731011474531,-500.0,0.00028261,2]
[341589875,1731011474541,-896.64,0.00028261,2]
[341589876,1731011474551,-552.79,0.00028261,2]
[341589877,1731011474561,-537.63331214,0.00028261,2]
[341589878,1731011474571,-990.97,0.00028261,2]
[341589879,1731011474580,-2519.45,0.00028261,2]
[341589880,1731011474590,-500.0,0.00028261,2]
[341589881,1731011474599,-500.0,0.00028261,2]
[341589882,1731011474609,-151.0,0.00028261,7]
[341589883,1731011474618,-1019.7,0.00028261,2]
[341589884,1731011474628,-500.0,0.00028261,2]
[341589885,1731011474641,-500.0,0.00028261,2]
[341589886,1731011474651,-601.24,0.00028261,2]
[341589887,1731011474661,-774.76,0.00028261,2]
[341589888,1731011474671,-151.0,0.00028261,7]
[341589889,1731011474680,-284.936427,0.00028261,7]
[341589890,1731011474689,-190.54646195,0.00028261,2]
[341589891,1731011474699,-500.0,0.00028261,2]
[341589892,1731011474709,-284.936427,0.00028261,7]
[341589893,1731011474719,-4435.81,0.00028261,2]
[341589894,1731011474729,-538.61,0.00028261,2]
[341589895,1731011474738,-551.51,0.00028261,2]
[341589896,1731011474748,-1241.37,0.00028261,2]
[341589897,1731011474757,-500.0,0.00028261,2]
[341589898,1731011474767,-151.0,0.00028261,7]
[341589899,1731011474776,-151.0,0.00028261,7]
[341589900,1731011474786,-778.73,0.00028261,2]
[341589901,1731011474795,-500.0,0.00028261,2]
[341589902,1731011474805,-284.828298,0.00028261,7]
[341589903,1731011474815,-284.828298,0.00028261,7]
[341589904,1731011474825,-518.46,0.00028261,2]
[341589905,1731011474834,-500.0,0.00028261,2]
[341589906,1731011474844,-679.23,0.00028261,2]
[341589907,1731011474853,-500.0,0.00028261,2]
[341589908,1731011474863,-500.0,0.00028261,2]
[341589909,1731011474872,-530.41,0.00028261,2]
[341589910,1731011474884,-151.0,0.00028261,7]
[341589911,1731011474894,-500.0,0.00028261,2]
[341589912,1731011474904,-500.0,0.00028261,2]
[341589913,1731011474915,-500.0,0.00028261,2]
[341589914,1731011474925,-500.0,0.00028261,2]
[341589915,1731011474935,-622.26,0.00028261,2]
[341589916,1731011474945,-677.13,0.00028261,2]
[341589917,1731011474955,-500.0,0.00028261,2]
[341589918,1731011474969,-500.0,0.00028261,2]
[341589919,1731011474979,-1177.17,0.00028261,2]
[341589920,1731011474989,-500.0,0.00028261,2]
[341589921,1731011474999,-500.0,0.00028261,2]
[341589922,1731011475010,-500.0,0.00028261,2]
[341589923,1731011475020,-500.0,0.00028261,2]
[341589924,1731011475030,-1091.31,0.00028261,2]
[341589925,1731011475042,-522.84,0.00028261,2]
[341589926,1731011475052,-197.582513,0.00028261,7]
[341589927,1731011475062,-661.37,0.00028261,2]
[341589928,1731011475072,-197.582513,0.00028261,7]
[341589929,1731011475083,-599.74,0.00028261,2]
[341589930,1731011475093,-1275.41,0.00028261,2]
[341589931,1731011475102,-1084.34,0.00028261,2]
[341589932,1731011475112,-500.0,0.00028261,2]
[341589933,1731011475123,-827.61,0.00028261,2]
[341589934,1731011475134,-1858.207835,0.00028261,7]
[341589935,1731011475145,-500.0,0.00028261,2]
[341589936,1731011475154,-500.0,0.00028261,2]
[341589937,1731011475164,-1858.207835,0.00028261,7]
[341589938,1731011475174,-800.46,0.00028261,2]
[341589939,1731011475183,-500.0,0.00028261,2]
[341589940,1731011475193,-581.87,0.00028261,2]
[341589941,1731011475203,-500.0,0.00028261,2]
[341589942,1731011475212,-500.0,0.00028261,2]
[341589943,1731011475222,-500.0,0.00028261,2]
[341589944,1731011475234,-863.17,0.00028261,2]
[341589945,1731011475243,-500.0,0.00028261,2]
[341589946,1731011475253,-458.98,0.00028261,2]
[341589947,1731011475264,-546.47,0.00028261,2]
[341589948,1731011475274,-500.0,0.00028261,2]
[341589949,1731011475283,-500.0,0.00028261,2]
[341589950,1731011475293,-196.027821,0.00028261,7]
[341589951,1731011475303,-707.95,0.00028261,2]
[341589952,1731011475314,-3273.297285,0.00028261,7]
[341589953,1731011475325,-196.027821,0.00028261,7]
[341589954,1731011475335,-500.0,0.00028261,2]
[341589955,1731011475344,-3273.297285,0.00028261,7]
[341589956,1731011475353,-963.34,0.00028261,2]
[341589957,1731011475363,-500.0,0.00028261,2]
[341589958,1731011475373,-500.0,0.00028261,2]
[341589959,1731011475384,-1137.63,0.00028261,2]
[341589960,1731011475393,-512.69,0.00028261,2]
[341589961,1731011475403,-500.0,0.00028261,2]
[341589962,1731011475413,-2127.02,0.00028261,2]
[341589963,1731011475424,-500.0,0.00028261,2]
[341589964,1731011475435,-890.32,0.00028261,2]
[341589965,1731011475444,-1288.66,0.00028261,2]
[341589966,1731011475454,-500.0,0.00028261,2]
[341589967,1731011475464,-500.0,0.00028261,2]
[341589968,1731011475474,-503.11,0.00028261,2]
[341589969,1731011475484,-304.431527,0.00028261,2]
[341589970,1731011475494,-500.0,0.00028261,2]
[341589971,1731011475505,-1530.92,0.00028261,2]
[341589972,1731011475514,-304.431527,0.00028261,2]
[341589973,1731011475524,-500.0,0.00028261,2]
[341589974,1731011475533,-785.3,0.00028261,2]
[341589975,1731011475543,-500.0,0.00028261,2]
[341589976,1731011475552,-500.0,0.00028261,2]
[341589977,1731011475562,-954.08,0.00028261,2]
[341589978,1731011475571,-500.0,0.00028261,2]
[341589979,1731011475581,-500.0,0.00028261,2]
[341589980,1731011475591,-1375.62,0.00028261,2]
[341589981,1731011475600,-500.0,0.00028261,2]
[341589982,1731011475610,-618.68,0.00028261,2]
[341589983,1731011475619,-554.15,0.00028261,2]
[341589984,1731011475629,-508.01,0.00028261,2]
[341589985,1731011475639,-500.0,0.00028261,2]
[341589986,1731011475648,-706.5,0.00028261,2]
[341589987,1731011475659,-500.0,0.00028261,2]
[341589988,1731011475669,-659.14,0.00028261,2]
[341589989,1731011475679,-1684.43,0.00028261,2]
[341589990,1731011475688,-500.0,0.00028261,2]
[341589991,1731011475699,-500.0,0.00028261,2]
[341589992,1731011475709,-552.93,0.00028261,2]
[341589993,1731011475718,-620.12,0.00028261,2]
[341589994,1731011475728,-629.42,0.00028261,2]
[341589995,1731011475738,-500.0,0.00028261,2]
[341589996,1731011475748,-1604.7,0.00028261,2]
[341589997,1731011475758,-1037.8,0.00028261,2]
[341589998,1731011475768,-500.0,0.00028261,2]
[341589999,1731011475778,-634.53,0.00028261,2]
[341590000,1731011475787,-500.0,0.00028261,2]
[341590001,1731011475797,-1008.13,0.00028261,2]
[341590002,1731011475807,-500.0,0.00028261,2]
[341590003,1731011475817,-500.0,0.00028261,2]
[341590004,1731011475827,-888.49,0.00028261,2]
[341590005,1731011475836,-500.0,0.00028261,2]
[341590006,1731011475846,-665.72,0.00028261,2]
[341590007,1731011475856,-500.0,0.00028261,2]
[341590008,1731011475866,-602.82,0.00028261,2]
[341590009,1731011475876,-845.97,0.00028261,2]
[341590010,1731011475887,-665.67,0.00028261,2]
[341590011,1731011475896,-500.0,0.00028261,2]
[341590012,1731011475908,-500.0,0.00028261,2]
[341590013,1731011475917,-779.11,0.00028261,2]
[341590014,1731011475928,-500.0,0.00028261,2]
[341590015,1731011475938,-500.0,0.00028261,2]
[341590016,1731011475948,-1260.12,0.00028261,2]
[341590017,1731011475961,-500.0,0.00028261,2]
[341590018,1731011475971,-595.99,0.00028278,2]
[341590019,1731011475981,-150.01,0.00028287,2]
[341590020,1731011475991,-7625.87349963,0.00028287,2]
[341590021,1731011476001,-151.0,0.00028287,7]
[341590022,1731011476011,-151.0,0.00028287,7]
[341590023,1731011476021,-151.0,0.00028288,7]
[341590024,1731011476032,-151.0,0.00028288,7]
[341590025,1731011476042,-151.0,0.00028288,7]
[341590026,1731011476052,-151.0,0.00028288,7]
[341590027,1731011476063,-151.0,0.00028288,7]
[341590028,1731011476073,-184.7076,0.00028288,7]
[341590029,1731011476083,-239.620318,0.00028288,7]
[341590030,1731011476093,-239.620318,0.00028288,7]
[341590031,1731011476103,-1023.767179,0.00028288,2]
[341590032,1731011476112,-151.0,0.00028288,7]
[341590033,1731011476462,-151.0,0.00028288,7]
[341590034,1731011476477,-151.0,0.00028288,7]
[341590035,1731011476487,-411.960432,0.00028288,7]
[341590036,1731011476496,-411.960432,0.00028288,7]
[341590037,1731011476507,-347.026174,0.00028288,7]
[341590038,1731011476517,-347.026174,0.00028288,7]
[341590039,1731011476526,-151.0,0.00028288,7]
[341590040,1731011476535,-4603.0,0.00028356,120]
[341590041,1731011476544,-151.0,0.00028361,7]
[341590042,1731011476554,-151.0,0.00028361,7]
[341590043,1731011476564,-188.846078,0.00028361,7]
[341590044,1731011476573,-188.846078,0.00028361,7]
[341590045,1731011476582,-151.0,0.00028361,7]
[341590046,1731011476592,-151.0,0.00028361,7]
[341590047,1731011476601,-151.0,0.00028361,7]
[341590048,1731011476610,-151.0,0.00028361,7]
[341590049,1731011476619,-151.0,0.00028361,7]
[341590050,1731011476635,-151.0,0.00028361,7]
[341590051,1731011476644,-151.0,0.00028361,7]
[341590052,1731011476653,-151.0,0.00028361,7]
[341590053,1731011476663,-151.0,0.00028361,7]
[341590054,1731011476673,-151.0,0.00028361,7]
[341590055,1731011476684,-152.32072,0.00028361,7]
[341590056,1731011476693,-152.32072,0.00028361,7]
[341590057,1731011476702,-500.0,0.00028361,2]
[341590058,1731011476712,-500.0,0.00028361,2]
[341590059,1731011476721,-595.99,0.00028361,2]
[341590060,1731011476731,-151.0,0.00028362,7]
[341590061,1731011476740,-151.0,0.00028362,7]
[341590062,1731011476750,-219.930726,0.00028362,7]
[341590063,1731011476760,-151.0,0.00028362,7]
[341590064,1731011476770,-151.0,0.00028362,7]
[341590065,1731011476780,-500.0,0.00028362,2]
[341590066,1731011476790,-621.18,0.00028362,2]
[341590067,1731011476799,-500.0,0.00028362,2]
[341590068,1731011476809,-500.0,0.00028362,2]
[341590069,1731011476819,-500.0,0.00028362,2]
[341590070,1731011476828,-690.39,0.00028362,2]
[341590071,1731011476838,-500.0,0.00028362,2]
[341590072,1731011476848,-213.398111,0.00028362,7]
[341590073,1731011476857,-213.398111,0.00028362,7]
[341590074,1731011476867,-500.0,0.00028362,2]
[341590075,1731011476876,-500.0,0.00028362,2]
[341590076,1731011476887,-161.762041,0.00028362,7]
[341590077,1731011476896,-248.368801,0.00028362,7]
[341590078,1731011476906,-248.368801,0.00028362,7]
[341590079,1731011476916,-543.592031,0.00028362,7]
[341590080,1731011476925,-543.592031,0.00028362,7]
[341590081,1731011476935,-151.0,0.00028362,7]
[341590082,1731011476945,-290.794095,0.00028362,7]
[341590083,1731011476955,-290.794095,0.00028362,7]
[341590084,1731011476968,-151.0,0.00028362,7]
[341590085,1731011476978,-284.936427,0.00028362,7]
[341590086,1731011476988,-284.936427,0.00028362,7]
[341590087,1731011476997,-151.0,0.00028362,7]
[341590088,1731011477007,-284.828298,0.00028362,7]
[341590089,1731011477017,-284.828298,0.00028362,7]
[341590090,1731011477027,-151.0,0.00028362,7]
[341590091,1731011477037,-197.582513,0.00028362,7]
[341590092,1731011477048,-197.582513,0.00028362,7]
[341590093,1731011477058,-267.972963,0.00028362,7]
[341590094,1731011477068,-267.972963,0.00028362,7]
[341590095,1731011477078,-790.428663,0.00028362,7]
[341590096,1731011477087,-790.428663,0.00028362,7]
[341590097,1731011477097,-230.212791,0.00028362,7]
[341590098,1731011477107,-2000.0,0.00028376,5]
[341590099,1731011477117,-163.90428723,0.0002838,2]
[341590100,1731011477127,-500.0,0.000284,120]
[341590101,1731011477140,-1000.0,0.000284,2]
[341590102,1731011477150,-700.0,0.00028436,7]
[341590103,1731011477160,-151.0,0.00028438,7]
[341590104,1731011477170,-151.0,0.00028438,7]
[341590105,1731011477180,-151.0,0.00028461,7]
[341590106,1731011477190,-151.0,0.00028461,7]
[341590107,1731011477200,-151.0,0.00028461,7]
[341590108,1731011477210,-189.026147,0.00028461,7]
[341590109,1731011477219,-215.934326,0.00028461,7]
[341590110,1731011477229,-215.934326,0.00028461,7]
[341590111,1731011477239,-151.0,0.00028461,7]
[341590112,1731011477248,-151.0,0.00028488,7]
[341590113,1731011477258,-151.0,0.00028488,7]
[341590114,1731011477267,-500.0,0.00028493,2]
[341590115,1731011477277,-500.0,0.00028493,2]
[341590116,1731011477287,-526.58804879,0.00028493,2]
[341590117,1731011477296,-500.0,0.00028493,2]
[341590118,1731011477306,-552.89,0.00028493,2]
[341590119,1731011477315,-236.39909502,0.00028493,2]
[341590120,1731011477325,-500.0,0.00028493,2]
[341590121,1731011477334,-500.0,0.00028493,2]
[341590122,1731011477344,-500.0,0.00028493,2]
[341590123,1731011477353,-500.0,0.00028493,2]
[341590124,1731011477363,-996.29,0.00028493,2]
[341590125,1731011477372,-500.0,0.00028493,2]
[341590126,1731011477384,-832.94,0.00028493,2]
[341590127,1731011477393,-656.7,0.00028493,2]
[341590128,1731011477403,-500.0,0.00028493,2]
[341590129,1731011477412,-500.0,0.00028493,2]
[341590130,1731011477421,-500.0,0.00028493,2]
[341590131,1731011477432,-500.0,0.00028493,2]
[341590132,1731011477442,-225.92931275,0.00028493,2]
[341590133,1731011477452,-622.33,0.00028493,2]
[341590134,1731011477461,-500.0,0.00028493,2]
[341590135,1731011477471,-500.0,0.00028493,2]
[341590136,1731011477480,-735.0,0.00028493,2]
[341590137,1731011477489,-500.0,0.00028493,2]
[341590138,1731011477499,-500.0,0.00028493,2]
[341590139,1731011477508,-1157.84,0.00028493,2]
[341590140,1731011477518,-500.0,0.00028493,2]
[341590141,1731011477527,-500.0,0.00028493,2]
[341590142,1731011477536,-500.0,0.00028493,2]
[341590143,1731011477546,-500.0,0.00028493,2]
[341590144,1731011477556,-500.0,0.00028493,2]
[341590145,1731011477565,-664.88,0.00028493,2]
[341590146,1731011477575,-500.0,0.00028493,2]
[341590147,1731011477584,-842.0,0.00028493,2]
[341590148,1731011477594,-500.0,0.00028493,2]
[341590149,1731011477604,-500.0,0.00028493,2]
[341590150,1731011477614,-500.0,0.00028493,2]
[341590151,1731011477623,-500.0,0.00028493,2]
[341590152,1731011477635,-500.0,0.00028493,2]
[341590153,1731011477645,-500.0,0.00028493,2]
[341590154,1731011477655,-500.0,0.00028493,2]
[341590155,1731011477665,-500.0,0.00028493,2]
[341590156,1731011477675,-500.0,0.00028493,2]
[341590157,1731011477685,-500.0,0.00028493,2]
[341590158,1731011477696,-500.0,0.00028493,2]
[341590159,1731011477706,-391.19850489,0.00028493,2]
[341590160,1731011477716,-849.33,0.00028493,2]
[341590161,1731011477725,-500.0,0.00028493,2]
[341590162,1731011477735,-500.0,0.00028493,2]
[341590163,1731011477745,-500.0,0.00028493,2]
[341590164,1731011477754,-1146.86,0.00028493,2]
[341590165,1731011477764,-500.0,0.00028493,2]
[341590166,1731011477774,-2367.1,0.00028493,2]
[341590167,1731011477783,-812.73,0.00028493,2]
[341590168,1731011477795,-500.0,0.00028493,2]
[341590169,1731011477806,-500.0,0.00028493,2]
[341590170,1731011477816,-505.41,0.00028493,2]
[341590171,1731011477826,-500.0,0.00028493,2]
[341590172,1731011477837,-859.78,0.00028493,2]
[341590173,1731011477847,-1030.59,0.00028493,2]
[341590174,1731011477857,-500.0,0.00028493,2]
[341590175,1731011477868,-500.0,0.00028493,2]
[341590176,1731011477877,-500.0,0.00028493,2]
[341590177,1731011477893,-1049.18,0.00028493,2]
[341590178,1731011477904,-758.06,0.00028493,2]
[341590179,1731011477914,-500.0,0.00028493,2]
[341590180,1731011477923,-584.38,0.00028493,2]
[341590181,1731011477936,-500.0,0.00028493,2]
[341590182,1731011477945,-168.244758,0.00028493,7]
[341590183,1731011477955,-795.48,0.00028493,2]
[341590184,1731011477967,-772.33,0.00028493,2]
[341590185,1731011477977,-500.0,0.00028493,2]
[341590186,1731011477986,-500.0,0.00028493,2]
[341590187,1731011477996,-500.0,0.00028493,2]
[341590188,1731011478006,-500.0,0.00028493,2]
[341590189,1731011478016,-826.25,0.00028493,2]
[341590190,1731011478025,-500.0,0.00028493,2]
[341590191,1731011478035,-500.0,0.00028493,2]
[341590192,1731011478044,-500.0,0.00028493,2]
[341590193,1731011478054,-922.87,0.00028493,2]
[341590194,1731011478064,-151.0,0.00028493,7]
[341590195,1731011478074,-500.0,0.00028493,2]
[341590196,1731011478084,-570.07,0.00028493,2]
[341590197,1731011478094,-500.0,0.00028493,2]
[341590198,1731011478104,-990.65,0.00028493,2]
[341590199,1731011478114,-500.0,0.00028493,2]
[341590200,1731011478124,-1391.61,0.00028493,2]
[341590201,1731011478144,-500.0,0.00028493,2]
[341590202,1731011478154,-962.46,0.00028493,2]
[341590203,1731011478164,-500.0,0.00028493,2]
[341590204,1731011478173,-525.18,0.00028493,2]
[341590205,1731011478183,-500.0,0.00028493,2]
[341590206,1731011478192,-281.42027645,0.00028493,2]
[341590207,1731011478202,-746.75,0.00028493,2]
[341590208,1731011478212,-500.0,0.00028493,2]
[341590209,1731011478221,-500.0,0.00028493,2]
[341590210,1731011478231,-500.0,0.00028493,2]
[341590211,1731011478240,-500.0,0.00028493,2]
[341590212,1731011478251,-500.0,0.00028493,2]
[341590213,1731011478261,-623.38,0.00028493,2]
[341590214,1731011478272,-500.0,0.00028493,2]
[341590215,1731011478282,-500.0,0.00028493,2]
[341590216,1731011478292,-1391.91,0.00028493,2]
[341590217,1731011478302,-500.0,0.00028493,2]
[341590218,1731011478313,-500.0,0.00028493,2]
[341590219,1731011478323,-513.5,0.00028493,2]
[341590220,1731011478333,-500.0,0.00028493,2]
[341590221,1731011478342,-500.0,0.00028493,2]
[341590222,1731011478353,-500.0,0.00028493,2]
[341590223,1731011478362,-500.0,0.00028493,2]
[341590224,1731011478373,-500.0,0.00028493,2]
[341590225,1731011478388,-500.0,0.00028493,2]
[341590226,1731011478398,-500.0,0.00028493,2]
[341590227,1731011478408,-500.0,0.00028493,2]
[341590228,1731011478418,-741.21,0.00028493,2]
[341590229,1731011478429,-500.0,0.00028493,2]
[341590230,1731011478439,-500.0,0.00028493,2]
[341590231,1731011478448,-500.0,0.00028493,2]
[341590232,1731011478458,-632.28,0.00028493,2]
[341590233,1731011478468,-708.91,0.00028493,2]
[341590234,1731011478477,-782.76,0.00028493,2]
[341590235,1731011478487,-500.0,0.00028493,2]
[341590236,1731011478497,-358.9,0.00028493,2]
[341590237,1731011478506,-1858.207835,0.00028493,7]
[341590238,1731011478516,-602.34,0.00028493,2]
[341590239,1731011478525,-500.0,0.00028493,2]
[341590240,1731011478535,-500.0,0.00028493,2]
[341590241,1731011478544,-1858.207835,0.00028493,7]
[341590242,1731011478553,-500.0,0.00028493,2]
[341590243,1731011478563,-500.0,0.00028493,2]
[341590244,1731011478572,-500.45,0.00028493,2]
[341590245,1731011478582,-500.0,0.00028493,2]
[341590246,1731011478592,-500.0,0.00028493,2]
[341590247,1731011478601,-500.0,0.00028493,2]
[341590248,1731011478611,-500.0,0.00028493,2]
[341590249,1731011478620,-513.55,0.00028493,2]
[341590250,1731011478629,-500.0,0.00028493,2]
[341590251,1731011478642,-500.0,0.00028493,2]
[341590252,1731011478652,-500.0,0.00028493,2]
[341590253,1731011478662,-500.0,0.00028493,2]
[341590254,1731011478672,-847.49,0.00028493,2]
[341590255,1731011478681,-500.0,0.00028493,2]
[341590256,1731011478691,-196.027821,0.00028493,7]
[341590257,1731011478700,-3273.297285,0.00028493,7]
[341590258,1731011478709,-627.61,0.00028493,2]
[341590259,1731011478719,-500.0,0.00028493,2]
[341590260,1731011478729,-196.027821,0.00028493,7]
[341590261,1731011478738,-3273.297285,0.00028493,7]
[341590262,1731011478747,-500.0,0.00028493,2]
[341590263,1731011478756,-758.1,0.00028493,2]
[341590264,1731011478766,-500.0,0.00028493,2]
[341590265,1731011478775,-500.0,0.00028493,2]
[341590266,1731011478785,-500.0,0.00028493,2]
[341590267,1731011478795,-500.0,0.00028493,2]
[341590268,1731011478805,-500.0,0.00028493,2]
[341590269,1731011478814,-500.0,0.00028493,2]
[341590270,1731011478824,-521.08,0.00028493,2]
[341590271,1731011478833,-500.0,0.00028493,2]
[341590272,1731011478842,-1032.51,0.00028493,2]
[341590273,1731011478934,-500.0,0.00028493,2]
[341590274,1731011478944,-500.0,0.00028493,2]
[341590275,1731011478954,-500.0,0.00028493,2]
[341590276,1731011478964,-500.0,0.00028493,2]
[341590277,1731011478974,-304.431527,0.00028493,2]
[341590278,1731011478984,-500.0,0.00028493,2]
[341590279,1731011478994,-512.03,0.00028493,2]
[341590280,1731011479004,-633.18,0.00028493,2]
[341590281,1731011479014,-304.431527,0.00028493,2]
[341590282,1731011479023,-581.32990752,0.00028493,2]
[341590283,1731011479033,-500.0,0.00028493,2]
[341590284,1731011479043,-500.0,0.00028493,2]
[341590285,1731011479053,-500.0,0.00028493,2]
[341590286,1731011479068,-500.0,0.00028493,2]
[341590287,1731011479080,-692.91,0.00028493,2]
[341590288,1731011479091,-1047.6,0.00028493,2]
[341590289,1731011479100,-730.81,0.00028493,2]
[341590290,1731011479110,-500.0,0.00028493,2]
[341590291,1731011479120,-1016.1,0.00028493,2]
[341590292,1731011479129,-1860.33,0.00028493,2]
[341590293,1731011479142,-500.0,0.00028493,2]
[341590294,1731011479152,-602.92,0.00028493,2]
[341590295,1731011479161,-500.0,0.00028493,2]
[341590296,1731011479170,-500.0,0.00028493,2]
[341590297,1731011479180,-500.0,0.00028493,2]
[341590298,1731011479189,-1864.69,0.00028493,2]
[341590299,1731011479199,-1880.48,0.00028493,2]
[341590300,1731011479208,-500.0,0.00028493,2]
[341590301,1731011479217,-500.0,0.00028493,2]
[341590302,1731011479227,-1023.36,0.00028493,2]
[341590303,1731011479236,-541.36931545,0.00028493,2]
[341590304,1731011479245,-759.25,0.00028493,2]
[341590305,1731011479255,-1882.14,0.00028493,2]
[341590306,1731011479264,-500.0,0.00028493,2]
[341590307,1731011479273,-12863.27,0.00028493,2]
[341590308,1731011479283,-810.01,0.00028493,2]
[341590309,1731011479292,-500.0,0.00028493,2]
[341590310,1731011479302,-529.48,0.00028493,2]
[341590311,1731011479312,-500.0,0.00028493,2]
[341590312,1731011479321,-741.68,0.00028493,2]
[341590313,1731011479331,-1287.22,0.00028493,2]
[341590314,1731011479340,-500.0,0.00028493,2]
[341590315,1731011479349,-504.3,0.00028493,2]
[341590316,1731011479358,-1180.37,0.00028493,2]
[341590317,1731011479367,-500.0,0.00028493,2]
[341590318,1731011479377,-844.4,0.00028493,2]
[341590319,1731011479391,-803.88,0.00028493,2]
[341590320,1731011479401,-500.0,0.00028493,2]
[341590321,1731011479411,-500.0,0.00028493,2]
[341590322,1731011479420,-542.4,0.00028493,2]
[341590323,1731011479430,-794.89,0.00028493,2]
[341590324,1731011479440,-4019.74,0.00028493,2]
[341590325,1731011479449,-500.0,0.00028493,2]
[341590326,1731011479459,-759.28,0.00028493,2]
[341590327,1731011479468,-652.81,0.00028493,2]
[341590328,1731011479478,-3623.88,0.00028493,2]
[341590329,1731011479487,-706.87,0.00028493,2]
[341590330,1731011479498,-151.0,0.00028493,7]
[341590331,1731011479507,-1354.3,0.00028493,2]
[341590332,1731011479516,-576.29,0.00028493,2]
[341590333,1731011479525,-534.58,0.00028493,2]
[341590334,1731011479534,-500.0,0.00028493,2]
[341590335,1731011479544,-511.69,0.00028493,2]
[341590336,1731011479553,-1135.74,0.00028493,2]
[341590337,1731011479563,-500.0,0.00028493,2]
[341590338,1731011479572,-3829.5,0.00028493,2]
[341590339,1731011479581,-532.84,0.00028493,2]
[341590340,1731011479590,-1210.85,0.00028493,2]
[341590341,1731011479599,-2233.74,0.00028493,2]
[341590342,1731011479609,-1569.08,0.00028493,2]